Cogmind - Beta 14 @@@ ROGUE MODE // 2025.01.01 @ 18:08:11 Player: KURIIRI Result: Self-destructed Performance ------------- Evolutions (2) 1000 Regions Visited (3) 600 Robots Destroyed (74) 370 Value Destroyed (1878) 1878 Prototype IDs (15) 300 Alien Tech Used (0) 0 Bonus (12) 12 TOTAL SCORE: 4160 Bonus ------- High Alert Combat Kills 12 Cogmind --------- Core Integrity 396/550 Matter 221/300 Energy 10/100 System Corruption 2% Temperature Cool (32) Movement Core (300) Ox5 Location -8/Materials Parts ------- > --- POWER (1) -------- (None) > --- PROPULSION (3) --- (None) > --- UTILITY (5) ------ Improved Heat Sink Medium Storage Unit Improved Terrain Scanner System Shield > --- WEAPON (2) ------- Ion Cannon > --- INVENTORY (10) --- Spiked Treads Compact Wheel Improved Heat Sink Makeshift System Restoration Module Recalibrator Power Bank Advanced Beam Cannon Ion Cannon Ion Cannon Advanced EMP Blaster Peak State ------------ > --- POWER ------------ Light Nuclear Core > --- PROPULSION ------- Light Treads Spiked Treads Advanced Treads > --- UTILITY ---------- Improved Heat Sink Medium Storage Unit Improved Terrain Scanner Targeting Computer System Shield > --- WEAPON ----------- Ion Cannon Ion Cannon > --- INVENTORY -------- Spiked Treads Compact Wheel Improved Heat Sink Makeshift System Restoration Module Recalibrator Power Bank Advanced Beam Cannon Ion Cannon Advanced EMP Blaster Multitool [Rating: 29] Favorites ----------- Power Ion Engine Engine Ion Engine Power Core Light Nuclear Core Propulsion Light Treads Treads Light Treads Wheel Compact Wheel Utility Improved Terrain Scanner Device Improved Terrain Scanner Storage Medium Storage Unit Processor Targeting Computer Hackware System Shield Weapon Subdweller Beam Cannon Energy Gun Small Laser Energy Cannon Subdweller Beam Cannon Launcher Grenade Launcher Special Weapon Multitool Build | -11 -10 -10 -8 ------- Run | Yrd Mat Sub Mat Slots Evolved 4 | . . . 4 Power . | . . . . Propulsion 1 | . . . 1 Utility 3 | . . . 3 Weapon . | . . . . Parts Attached 64 | 8 8 21 27 Power 4 | 1 1 1 1 Engine 3 | 1 1 1 . Core 1 | . . . 1 Reactor . | . . . . Propulsion 13 | 3 2 2 6 Treads 12 | 2 2 2 6 Leg . | . . . . Wheel 1 | 1 . . . Hover . | . . . . Flight . | . . . . Utility 16 | 2 1 9 4 Device 10 | 1 . 8 1 Storage 3 | 1 1 1 . Processor 1 | . . . 1 Hackware 2 | . . . 2 Protection . | . . . . Artifact . | . . . . Weapon 31 | 2 4 9 16 Energy Gun 2 | 2 . . . Energy Cannon 19 | . 1 7 11 Ballistic Gun . | . . . . Ballistic Cannon . | . . . . Launcher 8 | . 3 2 3 Special Weapon 2 | . . . 2 Impact Weapon . | . . . . Slashing Weapon . | . . . . Piercing Weapon . | . . . . Special Melee Weapon . | . . . . Unidentified Prototypes 2 | . . . 2 Parts Lost 10 | . . 2 8 Power 2 | . . 1 1 Propulsion 3 | . . . 3 Utility 2 | . . . 2 Weapon 3 | . . 1 2 Highest Loss Streak 4 | . . 1 4 To Critical Strikes 1 | . . . 1 Average Slot Usage (%) 97 | . 99 99 83 Engine 12 | . 14 13 4 Treads 27 | . 27 28 25 Device 14 | . 14 14 16 Storage 13 | . 14 14 9 Energy Gun 1 | . 2 . . Energy Cannon 19 | . 11 26 17 Launcher 6 | . 13 1 . Peak Build Rating 29 | 9 10 15 29 Average Rating 13 | 6 9 13 22 On Entrance 8 | . 9 10 14 Naked Turns . | . . . . Heaviest Build 32 | 13 22 32 32 Greatest Support 62 | 40 40 40 62 Greatest Overweight (x) 1 | . . . 1 Average Overweight (x) . | . . . . Largest Inventory Capacity 10 | 8 10 10 10 Average Capacity 9 | 7 9 10 10 Most Carried 10 | 5 10 10 10 Average Carried 9 | 3 8 9 9 Final Capacity 10 | 8 10 10 10 Final Carried 10 | 5 9 10 10 Class Distribution -------------------- 98% | Mutant Dominant Class ---------------- Mutant | -10/Materials Mutant | -10/Subcaves Mutant | -8/Materials Resources | -11 -10 -10 -8 ----------- Run | Yrd Mat Sub Mat Matter Collected 1583 | 313 839 220 211 Remotely . | . . . . Salvage Created 2416 | 196 860 936 424 Parts 146 | 11 45 65 25 Haulers Intercepted 3 | . 2 . 1 Recyclers Shooed 2 | 2 . . . Parts Field Recycled . | . . . . Retrieved Matter . | . . . . Parts Self-Destructed 15 | . . 15 . Prevented . | . . . . Kills | -11 -10 -10 -8 ------- Run | Yrd Mat Sub Mat Combat Hostiles Destroyed 49 | . 17 21 11 Cannons 27 | . 3 17 7 AOE 21 | . 14 4 3 Classes Destroyed 14 | 3 6 3 2 Worker 4 | 2 1 . 1 Builder 1 | . . . 1 Tunneler 6 | 4 2 . . Hauler 3 | . 2 . 1 Recycler 5 | 1 4 . . Mechanic 1 | . 1 . . Operator 2 | . 1 . 1 Watcher 3 | . 3 . . Swarmer 13 | . 5 4 4 Grunt 21 | . 12 3 6 Sentry 1 | . . 1 . Hunter 1 | . . . 1 Artisan 1 | . . 1 . Subdweller 13 | . . 13 . Best Kill Streak 6 | 3 6 4 3 Combat Bots Only 4 | . 4 4 3 Max Kills in Single Turn 4 | 1 2 4 3 Gunslinging . | . . . . Exploded 4 | . 2 4 2 Melee . | . . . . Uniques/NPCs Destroyed . | . . . . Combat | -11 -10 -10 -8 -------- Run | Yrd Mat Sub Mat Hostile Shots Fired 168 | . 32 48 88 Missed 49 | . 10 15 24 Damage Taken 1992 | . 366 575 1051 Core 282 | . 26 102 154 Absorbed by Shields . | . . . . Regen/Repaired (Parts) 264 | . 264 . . Core Remaining (%) 74 | 100 . 48 . Volleys Fired 213 | 19 79 78 37 Largest 2 | 2 2 2 2 Hottest 160 | 80 90 160 120 Shots Fired 320 | 38 94 121 67 Gun 61 | 38 23 . . Cannon 223 | . 41 120 62 Launcher 34 | . 30 1 3 Special 2 | . . . 2 Kinetic . | . . . . Thermal 286 | 38 64 120 64 Explosive 34 | . 30 1 3 Electromagnetic . | . . . . Robot Hit Streak 15 | 8 6 15 14 Robot Miss Streak 3 | 2 2 3 2 Penetration Max . | . . . . Secondary Targets . | . . . . Shots Hit Robots 176 | 23 44 56 53 Core Hits 109 | 8 52 25 24 Critical Kills 1 | . . . 1 Critical Parts Destroyed . | . . . . Critical Strikes 1 | . . . 1 Meltdown 1 | . . . 1 Melee Attacks . | . . . . Impact . | . . . . Slashing . | . . . . Piercing . | . . . . Sneak Attacks . | . . . . Combat Hostiles . | . . . . Follow-up Attacks . | . . . . Damage Inflicted 5019 | 228 1838 1486 1467 Guns 361 | 228 133 . . Cannons 2848 | . 351 1355 1142 Explosions 1757 | . 1317 131 309 Melee . | . . . . Ramming 37 | . 37 . . Kinetic . | . . . . Thermal 3225 | 228 484 1355 1158 Explosive 1757 | . 1317 131 309 Electromagnetic . | . . . . Impact . | . . . . Slashing . | . . . . Piercing . | . . . . Highest Corruption 2 | . . . 2 Average Corruption 2 | . . . 2 Corruption Purged . | . . . . Corruption Blocked . | . . . . Effects 4 | . . . 4 Message Errors 1 | . . . 1 Heat Flow Errors 1 | . . . 1 Energy Discharges 1 | . . . 1 Misfires 1 | . . . 1 Overload Shots . | . . . . Overflow Damage 123 | . 26 28 69 Projectiles 33 | . . . 33 Explosions 90 | . 26 28 36 Melee . | . . . . Knockbacks . | . . . . Impact . | . . . . Kinetic . | . . . . Secondary . | . . . . Self-Inflicted Damage 274 | . 87 . 187 Shots 9 | . 5 . 4 Rammed 5 | . 5 . . Targets Rammed 5 | . 5 . . Kicked . | . . . . Crushed . | . . . . Highest Temperature 203 | 126 160 201 203 Average Temperature 44 | 47 35 55 34 Received Heat Transfer 609 | . 78 162 369 Siege Activations . | . . . . Robots Corrupted . | . . . . Combat Hostiles . | . . . . Parts Fried . | . . . . Impact Corruptions . | . . . . Robots Melted 1 | . . . 1 Combat Hostiles 1 | . . . 1 Parts Melted 12 | . 1 5 6 Heat Transferred 5278 | 525 1040 1850 1863 Parts Sabotaged . | . . . . Parts Stolen . | . . . . Parts Stripped . | . . . . Power Chain Reactions . | . . . . Alert | -11 -10 -10 -8 ------- Run | Yrd Mat Sub Mat Peak Influence 476 | 35 476 . 268 Initial 22 | . 22 . . Average 217 | 15 274 . 99 Maximum Alert Level 2 | . 2 . 1 Low Security (%) 35 | 100 12 . 88 Level 1 62 | . 84 . 11 Level 2 2 | . 3 . . Level 3 . | . . . . Level 4 . | . . . . Level 5 . | . . . . High Security . | . . . . Max Security . | . . . . Squads Dispatched 6 | . 5 . 1 Investigation 5 | . 5 . . Extermination . | . . . . Reinforcement 1 | . . . 1 Assault . | . . . . Garrison . | . . . . Intercept . | . . . . Searches Triggered . | . . . . Construction Impeded . | . . . . Haulers Reinforced . | . . . . Active Scanning Responses . | . . . . Cargo Convoy Interrupts . | . . . . Stealth | -11 -10 -10 -8 --------- Run | Yrd Mat Sub Mat Distress Signals . | . . . . Communications Jammed . | . . . . Distress Signals . | . . . . Times Spotted 61 | . 20 24 17 Peak Tracking Total 6 | . 4 6 4 Tactical Retreats 7 | . 1 4 2 Traps | -11 -10 -10 -8 ------- Run | Yrd Mat Sub Mat Traps Triggered 6 | . 3 1 2 Indirectly . | . . . . Trap Hack Attempts . | . . . . Triggered . | . . . . Disarmed . | . . . . Reprogrammed . | . . . . Reused . | . . . . Traps Extracted . | . . . . Installed . | . . . . Triggered . | . . . . Machines | -11 -10 -10 -8 ---------- Run | Yrd Mat Sub Mat Machines Disabled 8 | . 2 1 5 Max in Single Turn 2 | . 1 1 2 Machines Repaired . | . . . . Machines Dismantled . | . . . . Machines Sabotaged 1 | . 1 . . Overloaded Fab Kills . | . . . . Hacking | -11 -10 -10 -8 --------- Run | Yrd Mat Sub Mat Machines Accessed 12 | . 9 2 1 Terminals 7 | . 6 . 1 Fabricators . | . . . . Repair Stations 1 | . 1 . . Recycling Units 2 | . 2 . . Scanalyzers . | . . . . Garrison Access . | . . . . Total Hacks 39 | . 30 6 3 Successful 31 | . 23 6 2 Failed 7 | . 6 . 1 Catastrophic . | . . . . Database Lockouts 1 | . 1 . . Manual 18 | . 15 . 3 Terminals 19 | . 16 . 3 Fabricators . | . . . . Repair Stations 12 | . 12 . . Recycling Units 2 | . 2 . . Scanalyzers . | . . . . Garrison Access . | . . . . Terminal Hacks 11 | . 5 6 . Record 5 | . . 5 . Robot Analysis 2 | . 2 . . Prototype ID Bank 1 | . 1 . . Terminal Index 1 | . 1 . . Alert Level 1 | . 1 . . Derelict Proto ID Bank 1 | . . 1 . Fabricator Hacks . | . . . . Repair Station Hacks 11 | . 11 . . Scan Component 6 | . 6 . . Repair 5 | . 5 . . Recycling Unit Hacks . | . . . . Scanalyzer . | . . . . Garrison Access Hacks . | . . . . Unauthorized Hacks 9 | . 7 . 2 Terminals 7 | . 5 . 2 Botnet 1 | . 1 . . Operators 2 | . 1 . 1 Skim 3 | . 2 . 1 Sabotage 1 | . 1 . . Fabricators . | . . . . Repair Stations . | . . . . Recycling Units 2 | . 2 . . Tunnel 2 | . 2 . . Scanalyzers . | . . . . Garrison Access . | . . . . Data Cores Recovered 1 | . 1 . . Used . | . . . . Hacking Detections 6 | . 5 . 1 Full Trace Events 2 | . 2 . . Feedback Events . | . . . . Feedback Blocked . | . . . . Robot Schematics Acquired . | . . . . Robots Built . | . . . . Authchips . | . . . . Time . | . . . . Total Robot Build Rating . | . . . . Part Schematics Acquired . | . . . . Parts Built . | . . . . Authchips . | . . . . Time . | . . . . Total Part Build Rating . | . . . . Parts Repaired 5 | . 5 . . Time 148 | . 148 . . Parts Recycled . | . . . . Recycled Matter . | . . . . Retrieved Matter . | . . . . Retrieved Components . | . . . . Parts Scanalyzed . | . . . . Part Schematics Acquired . | . . . . Parts Damaged . | . . . . Bothacking | -11 -10 -10 -8 ------------ Run | Yrd Mat Sub Mat Used RIF Installer . | . . . . Robots Hacked . | . . . . Non-combat . | . . . . Combat . | . . . . Robot Hacks Applied . | . . . . Relay Couplers Released . | . . . . Fabnet Peak Effective % . | . . . . Robots Rewired . | . . . . Allies Hacked . | . . . . Hacks Repelled . | . . . . Allies | -11 -10 -10 -8 -------- Run | Yrd Mat Sub Mat Total Allies . | . . . . Largest Group . | . . . . Highest-Rated Group . | . . . . Highest-Rated Ally . | . . . . Total Orders . | . . . . Ally Attacks . | . . . . Total Damage . | . . . . Kills . | . . . . Allies Corrupted . | . . . . Allies Melted . | . . . . Intel | -11 -10 -10 -8 ------- Run | Yrd Mat Sub Mat Robot Analysis Total 2 | . 2 . . Derelict Logs Recovered 2 | . . 2 . Drone Launches . | . . . . Drone Recoveries . | . . . . Exploration | -11 -10 -10 -8 ------------- Run | Yrd Mat Sub Mat Turns Passed 6095 | 205 2305 2824 761 Spaces Moved 3053 | 84 1231 1458 280 Core 1 | 1 . . . Treads 3050 | 81 1231 1458 280 Legs . | . . . . Wheels 2 | 2 . . . Hover . | . . . . Flight . | . . . . Fastest Speed 50 | 50 160 160 152 Average Speed 159 | 157 160 160 160 Slowest Speed 240 | 160 160 160 240 Overloaded Moves . | . . . . Propulsion Burnouts . | . . . . Robots Hopped . | . . . . Cave-ins Triggered . | . . . . Exploration Rate (%) 54 | 6 97 87 29 Regions Visited 3 Branch Regions 1 Pre-discovered Areas 4 | . 2 2 . Known Exits Taken . | . . . . Unknown Exits Taken 3 | 1 1 1 . Scrap Searched 13 | . . 13 . Spaces Dug 1 | . . 1 . Terrain Destroyed 252 | . 182 16 54 Melee . | . . . . Projectile 14 | . . 10 4 AOE 238 | . 182 6 50 Terrain Rammed . | . . . . Walls Destroyed . | . . . . Machines Disabled . | . . . . Actions | -11 -10 -10 -8 --------- Run | Yrd Mat Sub Mat Total 3924 | 115 1470 1820 519 Wait 543 | . 135 244 164 Move 3050 | 83 1230 1457 280 Hop . | . . . . Pick Up 24 | 5 8 9 2 Fast Attach 21 | 7 4 . 10 Attach 4 | . . 2 2 Detach 1 | . . . 1 Swap 39 | 1 4 19 15 Drop 23 | . 5 11 7 Fire 213 | 19 79 78 37 Melee . | . . . . Ram . | . . . . Kick . | . . . . Crush 5 | . 5 . . Escape Stasis . | . . . . Rewire . | . . . . Trap . | . . . . Miscellaneous 1 | . . . 1 Route ------- -11/Scrapyard -10/Materials (discovered 5 exits: [*Mat x3] / [*Min] / *Sub) -10/Subcaves (discovered 3 exits: *Mat x2 / [*Rec]) -8/Materials History --------- Turn | Location | Event 8 | -11/Scrapyard | Discovered new exit (range 15) 206 | -11/Scrapyard | Entered Materials 308 | -10/Materials | Build established: Mutant 444 | -10/Materials | Discovered new exit (range 3) 694 | -10/Materials | Repaired Grenade Launcher 879 | -10/Materials | Discovered new exit (range 5) 1124 | -10/Materials | Discovered new exit (range 9) 1237 | -10/Materials | Discovered new exit (range 8) 1670 | -10/Materials | Central database locked down 2107 | -10/Materials | Discovered new exit (range 12) 2301 | -10/Materials | Repaired Lgt. Treads 2329 | -10/Materials | Repaired Lgt. Treads 2356 | -10/Materials | Repaired Grenade Launcher 2402 | -10/Materials | Repaired Recalibrator 2511 | -10/Materials | Entered Subcaves 2613 | -10/Subcaves | Visited 4L-MR0's lab 2636 | -10/Subcaves | Found Power Bank 2794 | -10/Subcaves | Disturbed a concealed Subdweller 2876 | -10/Subcaves | Learned location of Zion (-6) 2917 | -10/Subcaves | Ambushed by angry Subdweller bent on revenge 3551 | -10/Subcaves | Discovered new exit (range 8) 3804 | -10/Subcaves | Shifting Twisted Machinery released Sub. Power Source 3804 | -10/Subcaves | Shifting Twisted Machinery released Sub. Beam Cannon 3904 | -10/Subcaves | Discovered new exit (range 11) 4027 | -10/Subcaves | Disturbed a concealed Subdweller 4131 | -10/Subcaves | Discovered new exit (range 12) 4177 | -10/Subcaves | Shifting Twisted Machinery released Flamer 4178 | -10/Subcaves | Shifting Twisted Machinery released Barrage Gun 4219 | -10/Subcaves | A swath of the cavern ceiling suddenly collapsed 4313 | -10/Subcaves | Learned location of Storage (-7) 4468 | -10/Subcaves | A swath of the cavern ceiling suddenly collapsed 4912 | -10/Subcaves | Core integrity fell below 50% 5250 | -10/Subcaves | Visited Clippyterm 5255 | -10/Subcaves | Learned Factory trap positions 5335 | -10/Subcaves | Entered Materials 5335 | -8/Materials | Evolved 4 slots: Propulsion x1, Utility x3 6089 | -8/Materials | Lost 4 parts (1p2n1u) 6096 | -8/Materials | Self-destructed Last Messages --------------- 06042_ R-06 Scavenger collects Lgt. Assault Rifle. 06042_ K-01 Serf collects debris. 06043_ S-10 Pest overheating. 06044_ S-10 Pest destroyed. 06045_ Lgt. Nuclear Core destroyed. 06047_ K-01 Serf collects debris. 06047_ Destroyed Flight Unit. 06047_ S-10 Pest destroyed. 06048_ R-06 Scavenger collects Lgt. Assault Rifle. 06050_ K-01 Serf collects debris. 06052_ U-05 Engineer builds a Wall. 06052_ R-06 Scavenger collects Flight Unit. 06058_ Targeting Computer destroyed. 06058_ Critical hit (Burn: +37). 06060_ System corrupted: Energy discharge (-3). 06060_ Acquired 11 matter. 06092_ Multitool destroyed. 06095_ Adv. Treads destroyed. Map ----- +----------------------------------------------------+ | ?????????????????????#?????????????????????? | | ????#??????################????????????????? | | ???????###??# + #????????????????? | | ???##### ### # #????????????????? | | ???# # # """ #????????????????? | | ??## # """"" #????#???????????? | | #?# # """"" #????????????????? | | ??# # # """"" #?#??????????????? | | ?## # # """ #????????????????? | | ??# + + #????????????????? | | ??# # ############???????????????? | | ??# # #?#??#???????? ????????????? | | ??# # ##??#??????????????????????? | | ??## # #??????????????#???????????? | | ######/## # #????????#?? ?????????????? | | # # ### #########??????????????????? | | # ?# ###### ## """ ##?????????????????? | | # # ^ # """ #????????????##????? | | # # # """ ######+## #????? | | # + """ + # #????? | | # ### """ # %/% T ????? | | # #?# ^ """ # # #????? | | # ?#?# ###+#### ##### #????? | | # ???# ### ##?# #?????????#????? | | ######## " r###Y#??# #??????????????? | | ????# T g @ #??# #??????????????? | | ?#??# " #??# #??????????????? | | ????# #?## #??????????????? | | ????# #??# #??? ??????????? | | ????# ######## #??? ????? ????????? | | #####+######## #??? [ ??????????????? | | # = # ??? ??????????????? | | # # ####?? #?????????????? | | # # #????? #?? ??????????? | | # ! # ?????## ###?#???????????? | | # # ###???? ????????????????? | | # + #?#?????????????????????? | | # # #???? ?????????????????? | | # # #??? ?????????????????? | | # # #?? ????????????????? | | #!!! # #?] ????????????????? | | #!!! ! # #=%! ???????????????? | | #!!! ] # # = ????????????????? | | #########+#### = ?????????????????? | | ????????#]#??# =!%[ ??????????????????? | | ????#???#[#??# ?????????????????????? | | ????????# #??# #???????????????????????? | | #????##?# #### ##??? ??????????????????? | | ???#????# #??????????????????????? | | ???#????# #??????????????????????? | +----------------------------------------------------+ Best States ------------- Heat Dissipation 45 Energy Generation 14 Energy Capacity 250 Matter Stores 300 Matter Capacity 300 Sight Range 16 Terrain Scan Range 16 Terrain Scan Density 10 Evasion (%) 40 Targeting Accuracy 5 Recoil Reduction 3 Defensive Hacking 10 Item Schematics ----------------- None Robot Schematics ------------------ None Fabricated ------------ Nothing Alien Tech Used ----------------- None Achievements -------------- None Challenges ------------ None Game ------ Seed RingSpectralCharge Manual? 0 Play Time 00:33:28 Cumulative 232.0 hours Start 2025.01.01 @ 02:41:15 End 2025.01.01 @ 18:08:11 Sessions 3 Manual Loads 0 Difficulty Rogue Special Mode None Game No. 173 Rogue 137 Adventurer 36 Explorer 0 Win Type - Total 3 Types 2/0/0/1/0/0/0/0/0 Lore% 58 Gallery% 67 Achievement% 58 Wizard Run 0 Options --------- Layout 1 ASCII 0 Keyboard 0 Movement Numpad Keybinds 0 Fullscreen 1 Font 48/Smallcaps Map View 50x35 Zoom Use 0% Tactical HUD 1 Map Filters NONE Filters NONE Steam 1 RUN: d289407d-c05e-4787-a77f-46e44029f8ad